[Event "Titled Tuesday Blitz June 21 Early 2022"]
[White "Wagner, Dennis"]
[Black "Steinberg, Nitzan"]
[WhiteFideId "24650684"]
[BlackFideId "2801795"]
[WhiteElo "2355"]
[BlackElo "2471"]
[Result "0-1"]
[Round "10"]
[TimeControl "180+1"]
[Date "2022.06.21"]
[WhiteClock "0:00:20"]
[BlackClock "0:00:17"]

1. d4 {[%clk 0:03:00]}  d5 {[%clk 0:02:59]} 2. Nf3 {[%clk 0:03:01]}  Nf6 {[%clk 0:02:59]} 3. c4 {[%clk 0:03:01]}  c6 {[%clk 0:03:00]} 4. Nc3 {[%clk 0:02:53]}  e6 {[%clk 0:02:59]} 5. g3 {[%clk 0:02:50]}  dxc4 {[%clk 0:02:57]} 6. Bg2 {[%clk 0:02:51]}  Nbd7 {[%clk 0:02:54]} 7. O-O {[%clk 0:02:51]}  Be7 {[%clk 0:02:54]} 8. a4 {[%clk 0:02:41]}  a5 {[%clk 0:02:54]} 9. e4 {[%clk 0:02:41]}  O-O {[%clk 0:02:51]} 10. Qe2 {[%clk 0:02:42]}  b6 {[%clk 0:02:45]} 11. Rd1 {[%clk 0:02:42]}  Ba6 {[%clk 0:02:34]} 12. h4 {[%clk 0:02:41]}  Re8 {[%clk 0:02:33]} 13. Bf4 {[%clk 0:02:26]}  h6 {[%clk 0:02:31]} 14. Nd2 {[%clk 0:02:23]}  Qc8 {[%clk 0:02:19]} 15. Nxc4 {[%clk 0:02:21]}  b5 {[%clk 0:02:17]} 16. axb5 {[%clk 0:01:35]}  cxb5 {[%clk 0:02:17]} 17. e5 {[%clk 0:01:36]}  bxc4 {[%clk 0:02:17]} 18. exf6 {[%clk 0:01:34]}  Nxf6 {[%clk 0:02:17]} 19. Bxa8 {[%clk 0:01:29]}  Qxa8 {[%clk 0:02:17]} 20. Rxa5 {[%clk 0:01:29]}  Bb4 {[%clk 0:02:10]} 21. Ra4 {[%clk 0:01:27]}  Bxc3 {[%clk 0:02:11]} 22. bxc3 {[%clk 0:01:26]}  Qc6 {[%clk 0:02:11]} 23. Rda1 {[%clk 0:01:02]}  Bb7 {[%clk 0:02:10]} 24. f3 {[%clk 0:01:02]}  Rc8 {[%clk 0:02:11]} 25. Ra7 {[%clk 0:00:59]}  Qxf3 {[%clk 0:02:04]} 26. Qxf3 {[%clk 0:00:58]}  Bxf3 {[%clk 0:02:04]} 27. Rc7 {[%clk 0:00:47]}  Rb8 {[%clk 0:01:55]} 28. Rxf7 {[%clk 0:00:37]}  Kxf7 {[%clk 0:01:42]} 29. Bxb8 {[%clk 0:00:36]}  Bd5 {[%clk 0:01:39]} 30. Ra3 {[%clk 0:00:30]}  Ne4 {[%clk 0:01:38]} 31. Kf1 {[%clk 0:00:28]}  g5 {[%clk 0:01:36]} 32. hxg5 {[%clk 0:00:28]}  hxg5 {[%clk 0:01:37]} 33. Ke2 {[%clk 0:00:29]}  Kg6 {[%clk 0:01:37]} 34. Kd1 {[%clk 0:00:23]}  Kf5 {[%clk 0:01:37]} 35. Kc2 {[%clk 0:00:23]}  Kg4 {[%clk 0:01:37]} 36. Ra1 {[%clk 0:00:23]}  Nf2 {[%clk 0:01:32]} 37. Rf1 {[%clk 0:00:21]}  Kf3 {[%clk 0:01:22]} 38. Be5 {[%clk 0:00:18]}  Ke2 {[%clk 0:01:18]} 39. Ra1 {[%clk 0:00:13]}  Nd3 {[%clk 0:01:16]} 40. Ra7 {[%clk 0:00:12]}  g4 {[%clk 0:01:14]} 41. Rg7 {[%clk 0:00:11]}  Kf3 {[%clk 0:01:02]} 42. Bd6 {[%clk 0:00:11]}  Be4 {[%clk 0:01:01]} 43. Kd2 {[%clk 0:00:12]}  Nf2 {[%clk 0:00:54]} 44. Rf7+ {[%clk 0:00:12]}  Kg2 {[%clk 0:00:55]} 45. Ke3 {[%clk 0:00:10]}  Bf3 {[%clk 0:00:55]} 46. Rf6 {[%clk 0:00:05]}  Ne4 {[%clk 0:00:55]} 47. Rxe6 {[%clk 0:00:05]}  Nxc3 {[%clk 0:00:54]} 48. Bb4 {[%clk 0:00:02]}  Nd5+ {[%clk 0:00:54]} 49. Kd2 {[%clk 0:00:02]}  Nxb4 {[%clk 0:00:55]} 50. Kc3 {[%clk 0:00:03]}  Nd5+ {[%clk 0:00:54]} 51. Kxc4 {[%clk 0:00:03]}  Kxg3 {[%clk 0:00:55]} 52. Re5 {[%clk 0:00:03]}  Kf4 {[%clk 0:00:51]} 53. Re8 {[%clk 0:00:03]}  g3 {[%clk 0:00:49]} 54. Rf8+ {[%clk 0:00:04]}  Ke3 {[%clk 0:00:45]} 55. Rg8 {[%clk 0:00:05]}  Kf2 {[%clk 0:00:43]} 56. Kc5 {[%clk 0:00:04]}  g2 {[%clk 0:00:42]} 57. Rxg2+ {[%clk 0:00:04]}  Kxg2 {[%clk 0:00:42]} 58. Kd6 {[%clk 0:00:05]}  Kf2 {[%clk 0:00:43]} 59. Ke5 {[%clk 0:00:06]}  Ke3 {[%clk 0:00:43]} 60. Ke6 {[%clk 0:00:07]}  Kxd4 {[%clk 0:00:44]} 61. Kd6 {[%clk 0:00:06]}  Bg4 {[%clk 0:00:44]} 62. Kc6 {[%clk 0:00:06]}  Ke5 {[%clk 0:00:44]} 63. Kc5 {[%clk 0:00:06]}  Bd7 {[%clk 0:00:43]} 64. Kc4 {[%clk 0:00:07]}  Ne3+ {[%clk 0:00:42]} 65. Kb3 {[%clk 0:00:08]}  Kd4 {[%clk 0:00:42]} 66. Kb2 {[%clk 0:00:08]}  Kc4 {[%clk 0:00:42]} 67. Kc1 {[%clk 0:00:09]}  Kc3 {[%clk 0:00:41]} 68. Kb1 {[%clk 0:00:10]}  Nc2 {[%clk 0:00:40]} 69. Kc1 {[%clk 0:00:11]}  Be6 {[%clk 0:00:37]} 70. Kb1 {[%clk 0:00:12]}  Bc4 {[%clk 0:00:37]} 71. Kc1 {[%clk 0:00:12]}  Ba2 {[%clk 0:00:38]} 72. Kd1 {[%clk 0:00:13]}  Nd4 {[%clk 0:00:37]} 73. Ke1 {[%clk 0:00:13]}  Kd3 {[%clk 0:00:37]} 74. Kf2 {[%clk 0:00:14]}  Ne2 {[%clk 0:00:37]} 75. Kf3 {[%clk 0:00:15]}  Be6 {[%clk 0:00:36]} 76. Kf2 {[%clk 0:00:16]}  Bg4 {[%clk 0:00:35]} 77. Ke1 {[%clk 0:00:15]}  Nd4 {[%clk 0:00:23]} 78. Kf2 {[%clk 0:00:16]}  Nf5 {[%clk 0:00:24]} 79. Ke1 {[%clk 0:00:16]}  Ke3 {[%clk 0:00:24]} 80. Kf1 {[%clk 0:00:16]}  Ng3+ {[%clk 0:00:24]} 81. Ke1 {[%clk 0:00:16]}  Ne4 {[%clk 0:00:24]} 82. Kf1 {[%clk 0:00:17]}  Bf3 {[%clk 0:00:19]} 83. Ke1 {[%clk 0:00:18]}  Nc5 {[%clk 0:00:18]} 84. Kf1 {[%clk 0:00:18]}  Nd3 {[%clk 0:00:19]} 85. Kg1 {[%clk 0:00:18]}  Kf4 {[%clk 0:00:18]} 86. Kf1 {[%clk 0:00:18]}  Kg3 {[%clk 0:00:18]} 87. Kg1 {[%clk 0:00:18]}  Be2 {[%clk 0:00:16]} 88. Kh1 {[%clk 0:00:19]}  Nf4 {[%clk 0:00:16]} 89. Kg1 {[%clk 0:00:20]}  Nh3+ {[%clk 0:00:17]} 90. Kh1 {[%clk 0:00:20]}  Bf3# {[%clk 0:00:17]} 0-1


[Site "https://www.chess.com"]

[Event "Titled Tuesday Blitz June 21 Early 2022"]
[White "Winkels, Marcel"]
[Black "Sanchez, Robert"]
[WhiteFideId "1003887"]
[BlackFideId "2034360"]
[WhiteElo "1900"]
[BlackElo "1997"]
[Result "1-0"]
[Round "10"]
[TimeControl "180+1"]
[Date "2022.06.22"]
[WhiteClock "0:01:30"]
[BlackClock "0:01:24"]

1. e4 {[%clk 0:03:00]}  e6 {[%clk 0:02:59]} 2. d4 {[%clk 0:02:57]}  d5 {[%clk 0:02:59]} 3. exd5 {[%clk 0:02:57]}  exd5 {[%clk 0:03:00]} 4. Nf3 {[%clk 0:02:55]}  Nf6 {[%clk 0:02:58]} 5. Bf4 {[%clk 0:02:56]}  Be7 {[%clk 0:02:57]} 6. Bd3 {[%clk 0:02:55]}  O-O {[%clk 0:02:58]} 7. h3 {[%clk 0:02:54]}  c6 {[%clk 0:02:58]} 8. O-O {[%clk 0:02:52]}  h6 {[%clk 0:02:57]} 9. c3 {[%clk 0:02:52]}  Be6 {[%clk 0:02:54]} 10. Nbd2 {[%clk 0:02:51]}  Nbd7 {[%clk 0:02:45]} 11. Re1 {[%clk 0:02:50]}  Re8 {[%clk 0:02:45]} 12. Nf1 {[%clk 0:02:49]}  Nf8 {[%clk 0:02:42]} 13. Ng3 {[%clk 0:02:46]}  Bd6 {[%clk 0:02:35]} 14. Bxd6 {[%clk 0:02:44]}  Qxd6 {[%clk 0:02:35]} 15. Nf5 {[%clk 0:02:44]}  Bxf5 {[%clk 0:02:35]} 16. Bxf5 {[%clk 0:02:43]}  Qf4 {[%clk 0:02:35]} 17. Bd3 {[%clk 0:02:41]}  Rxe1+ {[%clk 0:02:30]} 18. Qxe1 {[%clk 0:02:40]}  Re8 {[%clk 0:02:30]} 19. Qd2 {[%clk 0:02:40]}  Qxd2 {[%clk 0:02:26]} 20. Nxd2 {[%clk 0:02:39]}  Ne6 {[%clk 0:02:22]} 21. g3 {[%clk 0:02:36]}  Ng5 {[%clk 0:02:20]} 22. Kg2 {[%clk 0:02:35]}  Nge4 {[%clk 0:02:20]} 23. Nb3 {[%clk 0:02:21]}  Kf8 {[%clk 0:02:18]} 24. Na5 {[%clk 0:02:20]}  Re7 {[%clk 0:02:13]} 25. Re1 {[%clk 0:02:16]}  Rc7 {[%clk 0:02:12]} 26. f3 {[%clk 0:02:09]}  Nd6 {[%clk 0:02:10]} 27. g4 {[%clk 0:02:03]}  b6 {[%clk 0:02:10]} 28. Nb3 {[%clk 0:02:02]}  Re7 {[%clk 0:02:08]} 29. Rxe7 {[%clk 0:01:59]}  Kxe7 {[%clk 0:02:08]} 30. h4 {[%clk 0:01:59]}  Nc4 {[%clk 0:01:58]} 31. Bxc4 {[%clk 0:01:58]}  dxc4 {[%clk 0:01:59]} 32. Nd2 {[%clk 0:01:57]}  b5 {[%clk 0:01:59]} 33. Ne4 {[%clk 0:01:54]}  Nd5 {[%clk 0:01:56]} 34. Kf2 {[%clk 0:01:50]}  Nf4 {[%clk 0:01:55]} 35. b3 {[%clk 0:01:40]}  Nd3+ {[%clk 0:01:51]} 36. Ke3 {[%clk 0:01:38]}  Nc1 {[%clk 0:01:50]} 37. bxc4 {[%clk 0:01:37]}  bxc4 {[%clk 0:01:49]} 38. a3 {[%clk 0:01:35]}  Na2 {[%clk 0:01:31]} 39. Kd2 {[%clk 0:01:33]}  Ke6 {[%clk 0:01:30]} 40. Kc2 {[%clk 0:01:31]}  f5 {[%clk 0:01:26]} 41. Nc5+ {[%clk 0:01:30]}  Kd5 {[%clk 0:01:25]} 42. Kb2 {[%clk 0:01:30]}  fxg4 {[%clk 0:01:24]} 43. fxg4 {[%clk 0:01:30]} 1-0


[Site "https://www.chess.com"]

[Event "Titled Tuesday Blitz June 21 Early 2022"]
[White "Yuan, Qingyu"]
[Black "Piesik, Piotr"]
[WhiteFideId "8609772"]
[BlackFideId "1136194"]
[WhiteElo "2359"]
[BlackElo "2247"]
[Result "1-0"]
[Round "10"]
[TimeControl "180+1"]
[Date "2022.06.21"]
[WhiteClock "0:00:31"]
[BlackClock "0:00:30"]

1. e4 {[%clk 0:03:00]}  g6 {[%clk 0:01:55]} 2. d4 {[%clk 0:02:59]}  Bg7 {[%clk 0:01:56]} 3. Nf3 {[%clk 0:02:59]}  c6 {[%clk 0:01:56]} 4. h3 {[%clk 0:02:59]}  d6 {[%clk 0:01:56]} 5. c4 {[%clk 0:02:58]}  Nf6 {[%clk 0:01:57]} 6. Nc3 {[%clk 0:02:59]}  O-O {[%clk 0:01:57]} 7. Bd3 {[%clk 0:02:56]}  Nbd7 {[%clk 0:01:57]} 8. O-O {[%clk 0:02:51]}  e5 {[%clk 0:01:57]} 9. d5 {[%clk 0:02:48]}  cxd5 {[%clk 0:01:57]} 10. cxd5 {[%clk 0:02:46]}  Nc5 {[%clk 0:01:57]} 11. Be3 {[%clk 0:02:39]}  Nxd3 {[%clk 0:01:57]} 12. Qxd3 {[%clk 0:02:39]}  Nh5 {[%clk 0:01:56]} 13. Rac1 {[%clk 0:02:27]}  f5 {[%clk 0:01:51]} 14. Bg5 {[%clk 0:02:18]}  Bf6 {[%clk 0:01:51]} 15. Bh6 {[%clk 0:02:07]}  Rf7 {[%clk 0:01:50]} 16. Rc2 {[%clk 0:01:47]}  f4 {[%clk 0:01:45]} 17. Rfc1 {[%clk 0:01:42]}  a6 {[%clk 0:01:42]} 18. Na4 {[%clk 0:01:33]}  Bd7 {[%clk 0:01:36]} 19. Qa3 {[%clk 0:01:25]}  b5 {[%clk 0:01:26]} 20. Nc3 {[%clk 0:01:25]}  Be7 {[%clk 0:01:10]} 21. Nb1 {[%clk 0:01:13]}  Ra7 {[%clk 0:01:06]} 22. Nbd2 {[%clk 0:01:11]}  a5 {[%clk 0:01:05]} 23. b4 {[%clk 0:01:09]}  a4 {[%clk 0:01:03]} 24. Qd3 {[%clk 0:01:06]}  g5 {[%clk 0:01:00]} 25. Qe2 {[%clk 0:00:53]}  g4 {[%clk 0:00:49]} 26. hxg4 {[%clk 0:00:51]}  Bxg4 {[%clk 0:00:50]} 27. Qxb5 {[%clk 0:00:52]}  Rf6 {[%clk 0:00:39]} 28. Bg5 {[%clk 0:00:44]}  Rg6 {[%clk 0:00:39]} 29. Bxe7 {[%clk 0:00:41]}  Qxe7 {[%clk 0:00:39]} 30. Qb8+ {[%clk 0:00:39]}  Kf7 {[%clk 0:00:33]} 31. Rc7 {[%clk 0:00:38]}  Rxc7 {[%clk 0:00:30]} 32. Rxc7 {[%clk 0:00:39]}  Bd7 {[%clk 0:00:31]} 33. Qa7 {[%clk 0:00:35]}  Nf6 {[%clk 0:00:30]} 34. b5 {[%clk 0:00:31]} 1-0


[Site "https://www.chess.com"]

[Event "Titled Tuesday Blitz June 21 Early 2022"]
[White "Yurovskykh, Oleksandr"]
[Black "Melikhov, Evgeny V."]
[WhiteFideId "14134020"]
[BlackFideId "4122046"]
[WhiteElo "2292"]
[BlackElo "1904"]
[Result "1-0"]
[Round "10"]
[TimeControl "180+1"]
[Date "2022.06.22"]
[WhiteClock "0:00:10"]
[BlackClock "0:00:10"]

1. d4 {[%clk 0:03:00]}  Nf6 {[%clk 0:02:58]} 2. c4 {[%clk 0:02:57]}  e6 {[%clk 0:02:58]} 3. Nc3 {[%clk 0:02:57]}  Bb4 {[%clk 0:02:58]} 4. e3 {[%clk 0:02:58]}  b6 {[%clk 0:02:58]} 5. Ne2 {[%clk 0:02:58]}  Ba6 {[%clk 0:02:57]} 6. a3 {[%clk 0:02:58]}  Bxc3+ {[%clk 0:02:57]} 7. Nxc3 {[%clk 0:02:59]}  O-O {[%clk 0:02:57]} 8. b4 {[%clk 0:02:55]}  c5 {[%clk 0:02:50]} 9. Be2 {[%clk 0:02:44]}  d5 {[%clk 0:02:47]} 10. dxc5 {[%clk 0:02:40]}  Bxc4 {[%clk 0:02:33]} 11. cxb6 {[%clk 0:02:11]}  axb6 {[%clk 0:02:28]} 12. O-O {[%clk 0:02:08]}  b5 {[%clk 0:02:21]} 13. Nxb5 {[%clk 0:02:04]}  Bxe2 {[%clk 0:02:04]} 14. Qxe2 {[%clk 0:02:05]}  Qb6 {[%clk 0:02:00]} 15. Bb2 {[%clk 0:02:00]}  Ne4 {[%clk 0:01:58]} 16. Qg4 {[%clk 0:01:38]}  f6 {[%clk 0:01:57]} 17. Nd4 {[%clk 0:01:31]}  e5 {[%clk 0:01:45]} 18. Qe6+ {[%clk 0:01:31]}  Qxe6 {[%clk 0:01:44]} 19. Nxe6 {[%clk 0:01:32]}  Rc8 {[%clk 0:01:43]} 20. Rfc1 {[%clk 0:01:28]}  Nc6 {[%clk 0:01:40]} 21. Nc5 {[%clk 0:01:22]}  Nd2 {[%clk 0:01:38]} 22. f3 {[%clk 0:01:04]}  Nc4 {[%clk 0:01:37]} 23. Rxc4 {[%clk 0:00:56]}  dxc4 {[%clk 0:01:37]} 24. Rc1 {[%clk 0:00:56]}  Na5 {[%clk 0:01:28]} 25. Kf2 {[%clk 0:00:28]}  Nb3 {[%clk 0:01:23]} 26. Rxc4 {[%clk 0:00:28]}  Nxc5 {[%clk 0:01:22]} 27. bxc5 {[%clk 0:00:25]}  Ra5 {[%clk 0:01:22]} 28. Ke2 {[%clk 0:00:19]}  Raxc5 {[%clk 0:01:22]} 29. Rxc5 {[%clk 0:00:17]}  Rxc5 {[%clk 0:01:22]} 30. Kd3 {[%clk 0:00:18]}  Kf7 {[%clk 0:01:20]} 31. Bc3 {[%clk 0:00:18]}  Ke6 {[%clk 0:01:19]} 32. g4 {[%clk 0:00:18]}  g5 {[%clk 0:01:10]} 33. a4 {[%clk 0:00:09]}  Rc8 {[%clk 0:01:00]} 34. a5 {[%clk 0:00:10]}  Kd5 {[%clk 0:00:58]} 35. Bb4 {[%clk 0:00:09]}  h5 {[%clk 0:00:54]} 36. h3 {[%clk 0:00:08]}  h4 {[%clk 0:00:53]} 37. e4+ {[%clk 0:00:06]}  Ke6 {[%clk 0:00:36]} 38. Bd2 {[%clk 0:00:06]}  Rb8 {[%clk 0:00:32]} 39. Be3 {[%clk 0:00:05]}  Rb3+ {[%clk 0:00:30]} 40. Ke2 {[%clk 0:00:06]}  Ra3 {[%clk 0:00:29]} 41. Bb6 {[%clk 0:00:06]}  Kd7 {[%clk 0:00:29]} 42. Kf2 {[%clk 0:00:07]}  Kc6 {[%clk 0:00:29]} 43. Bd8 {[%clk 0:00:07]}  Ra2+ {[%clk 0:00:27]} 44. Kg1 {[%clk 0:00:06]}  Ra3 {[%clk 0:00:25]} 45. Kg2 {[%clk 0:00:07]}  Ra2+ {[%clk 0:00:24]} 46. Kg1 {[%clk 0:00:07]}  Kd7 {[%clk 0:00:24]} 47. Bxf6 {[%clk 0:00:07]}  Rxa5 {[%clk 0:00:23]} 48. Bxg5 {[%clk 0:00:07]}  Ke6 {[%clk 0:00:24]} 49. Bxh4 {[%clk 0:00:08]}  Ra2 {[%clk 0:00:23]} 50. Bf2 {[%clk 0:00:08]}  Rb2 {[%clk 0:00:23]} 51. h4 {[%clk 0:00:08]}  Rc2 {[%clk 0:00:23]} 52. Kg2 {[%clk 0:00:09]}  Kf6 {[%clk 0:00:23]} 53. Kg3 {[%clk 0:00:09]}  Ra2 {[%clk 0:00:22]} 54. h5 {[%clk 0:00:09]}  Ra3 {[%clk 0:00:21]} 55. Bb6 {[%clk 0:00:09]}  Rb3 {[%clk 0:00:21]} 56. Bd8+ {[%clk 0:00:09]}  Kf7 {[%clk 0:00:20]} 57. g5 {[%clk 0:00:08]}  Rb8 {[%clk 0:00:19]} 58. Bf6 {[%clk 0:00:09]}  Rb3 {[%clk 0:00:18]} 59. Bxe5 {[%clk 0:00:08]}  Ke6 {[%clk 0:00:17]} 60. Bf6 {[%clk 0:00:07]}  Rb1 {[%clk 0:00:16]} 61. h6 {[%clk 0:00:07]}  Rh1 {[%clk 0:00:16]} 62. e5 {[%clk 0:00:06]}  Kf5 {[%clk 0:00:16]} 63. Kg2 {[%clk 0:00:06]}  Rh4 {[%clk 0:00:16]} 64. Kg3 {[%clk 0:00:06]}  Rh1 {[%clk 0:00:16]} 65. Kf2 {[%clk 0:00:07]}  Ra1 {[%clk 0:00:10]} 66. Ke3 {[%clk 0:00:07]}  Ra4 {[%clk 0:00:10]} 67. h7 {[%clk 0:00:08]}  Ra3+ {[%clk 0:00:09]} 68. Kf2 {[%clk 0:00:08]}  Kf4 {[%clk 0:00:09]} 69. h8=Q {[%clk 0:00:08]}  Ra2+ {[%clk 0:00:10]} 70. Ke1 {[%clk 0:00:09]}  Ke3 {[%clk 0:00:10]} 71. Kd1 {[%clk 0:00:09]}  Ra1+ {[%clk 0:00:10]} 72. Kc2 {[%clk 0:00:09]}  Ra2+ {[%clk 0:00:10]} 73. Kb3 {[%clk 0:00:09]}  Rf2 {[%clk 0:00:10]} 74. Qh6 {[%clk 0:00:10]} 1-0


[Site "https://www.chess.com"]

[Event "Titled Tuesday Blitz June 21 Early 2022"]
[White "Ziatdinov, Raset"]
[Black "Petrovic, Aleksa"]
[WhiteFideId "2015323"]
[BlackFideId "967629"]
[WhiteElo "2220"]
[BlackElo "2117"]
[Result "1/2-1/2"]
[Round "10"]
[TimeControl "180+1"]
[Date "2022.06.22"]
[WhiteClock "0:01:24"]
[BlackClock "0:00:09"]

1. e4 {[%clk 0:03:00]}  c6 {[%clk 0:02:56]} 2. d4 {[%clk 0:03:00]}  d5 {[%clk 0:02:56]} 3. exd5 {[%clk 0:03:01]}  cxd5 {[%clk 0:02:56]} 4. Bd3 {[%clk 0:03:02]}  Nc6 {[%clk 0:02:54]} 5. c3 {[%clk 0:03:02]}  Qc7 {[%clk 0:02:53]} 6. Nf3 {[%clk 0:03:01]}  g6 {[%clk 0:02:51]} 7. Bg5 {[%clk 0:03:00]}  Bf5 {[%clk 0:02:48]} 8. O-O {[%clk 0:02:59]}  Bg7 {[%clk 0:02:31]} 9. h3 {[%clk 0:02:56]}  Nf6 {[%clk 0:02:25]} 10. Bxf5 {[%clk 0:02:56]}  gxf5 {[%clk 0:02:25]} 11. Nbd2 {[%clk 0:02:57]}  Ne4 {[%clk 0:02:21]} 12. Re1 {[%clk 0:02:52]}  e6 {[%clk 0:02:14]} 13. Nf1 {[%clk 0:02:38]}  h6 {[%clk 0:02:03]} 14. Bh4 {[%clk 0:02:35]}  Ne7 {[%clk 0:01:49]} 15. Ne5 {[%clk 0:02:31]}  Bxe5 {[%clk 0:01:39]} 16. dxe5 {[%clk 0:02:32]}  Ng6 {[%clk 0:01:39]} 17. Bg3 {[%clk 0:02:28]}  Nxg3 {[%clk 0:01:33]} 18. Nxg3 {[%clk 0:02:28]}  O-O-O {[%clk 0:01:28]} 19. Qd4 {[%clk 0:02:25]}  Qb6 {[%clk 0:01:24]} 20. Qxb6 {[%clk 0:02:24]}  axb6 {[%clk 0:01:25]} 21. Rad1 {[%clk 0:02:20]}  Kc7 {[%clk 0:01:24]} 22. Nh5 {[%clk 0:02:20]}  Ra8 {[%clk 0:01:16]} 23. a3 {[%clk 0:02:19]}  Ra4 {[%clk 0:01:16]} 24. Rd4 {[%clk 0:02:16]}  Rha8 {[%clk 0:01:09]} 25. Nf6 {[%clk 0:02:15]}  Ne7 {[%clk 0:01:03]} 26. Ne8+ {[%clk 0:02:13]}  Kd7 {[%clk 0:00:53]} 27. Nd6 {[%clk 0:02:13]}  Rxd4 {[%clk 0:00:49]} 28. cxd4 {[%clk 0:02:12]}  Ra4 {[%clk 0:00:44]} 29. Rd1 {[%clk 0:02:12]}  Nc6 {[%clk 0:00:44]} 30. Nxf7 {[%clk 0:02:12]}  h5 {[%clk 0:00:37]} 31. Nd6 {[%clk 0:02:02]}  Nxd4 {[%clk 0:00:36]} 32. Nxb7 {[%clk 0:02:01]}  Nc6 {[%clk 0:00:35]} 33. Nd6 {[%clk 0:01:46]}  Nxe5 {[%clk 0:00:19]} 34. Nb5 {[%clk 0:01:47]}  Re4 {[%clk 0:00:16]} 35. Nc3 {[%clk 0:01:45]}  Rc4 {[%clk 0:00:15]} 36. f3 {[%clk 0:01:41]}  d4 {[%clk 0:00:15]} 37. Rd2 {[%clk 0:01:37]}  Kc6 {[%clk 0:00:15]} 38. Ne2 {[%clk 0:01:36]}  Kc5 {[%clk 0:00:15]} 39. Kf2 {[%clk 0:01:34]}  d3 {[%clk 0:00:07]} 40. Nf4 {[%clk 0:01:32]}  Rc2 {[%clk 0:00:07]} 41. Ke1 {[%clk 0:01:30]}  Rxd2 {[%clk 0:00:07]} 42. Kxd2 {[%clk 0:01:31]}  Nc4+ {[%clk 0:00:06]} 43. Kxd3 {[%clk 0:01:31]}  Nxb2+ {[%clk 0:00:07]} 44. Kc2 {[%clk 0:01:31]}  Nc4 {[%clk 0:00:07]} 45. Nxe6+ {[%clk 0:01:32]}  Kd6 {[%clk 0:00:08]} 46. Ng7 {[%clk 0:01:32]}  Ne3+ {[%clk 0:00:07]} 47. Kd3 {[%clk 0:01:32]}  Nxg2 {[%clk 0:00:08]} 48. Nxf5+ {[%clk 0:01:32]}  Ke5 {[%clk 0:00:08]} 49. Ng7 {[%clk 0:01:30]}  Nf4+ {[%clk 0:00:09]} 50. Kc4 {[%clk 0:01:30]}  Kf6 {[%clk 0:00:09]} 51. Ne8+ {[%clk 0:01:29]}  Ke7 {[%clk 0:00:09]} 52. Ng7 {[%clk 0:01:25]}  Kf7 {[%clk 0:00:08]} 53. Nf5 {[%clk 0:01:24]}  Nxh3 {[%clk 0:00:08]} 54. Kb5 {[%clk 0:01:23]}  Kf6 {[%clk 0:00:08]} 55. Ng3 {[%clk 0:01:19]}  h4 {[%clk 0:00:08]} 56. Ne4+ {[%clk 0:01:19]}  Kf5 {[%clk 0:00:07]} 57. Kxb6 {[%clk 0:01:19]}  Ng1 {[%clk 0:00:07]} 58. Nf2 {[%clk 0:01:18]}  Kf4 {[%clk 0:00:07]} 59. a4 {[%clk 0:01:18]}  Nxf3 {[%clk 0:00:05]} 60. a5 {[%clk 0:01:17]}  Kg3 {[%clk 0:00:05]} 61. Nh1+ {[%clk 0:01:14]}  Kg2 {[%clk 0:00:05]} 62. a6 {[%clk 0:01:14]}  Kxh1 {[%clk 0:00:05]} 63. a7 {[%clk 0:01:14]}  h3 {[%clk 0:00:04]} 64. a8=Q {[%clk 0:01:15]}  Kg2 {[%clk 0:00:03]} 65. Qa2+ {[%clk 0:01:15]}  Kg1 {[%clk 0:00:03]} 66. Qb1+ {[%clk 0:01:15]}  Kg2 {[%clk 0:00:04]} 67. Qc2+ {[%clk 0:01:14]}  Kg1 {[%clk 0:00:04]} 68. Qd1+ {[%clk 0:01:15]}  Kg2 {[%clk 0:00:04]} 69. Qe2+ {[%clk 0:01:15]}  Kg1 {[%clk 0:00:02]} 70. Qxf3 {[%clk 0:01:15]}  h2 {[%clk 0:00:03]} 71. Qd1+ {[%clk 0:01:15]}  Kg2 {[%clk 0:00:03]} 72. Qe2+ {[%clk 0:01:16]}  Kg1 {[%clk 0:00:03]} 73. Qg4+ {[%clk 0:01:17]}  Kh1 {[%clk 0:00:04]} 74. Qf3+ {[%clk 0:01:14]}  Kg1 {[%clk 0:00:04]} 75. Qe3+ {[%clk 0:01:15]}  Kg2 {[%clk 0:00:04]} 76. Qe2+ {[%clk 0:01:15]}  Kg1 {[%clk 0:00:04]} 77. Qe1+ {[%clk 0:01:15]}  Kg2 {[%clk 0:00:04]} 78. Qd2+ {[%clk 0:01:16]}  Kg1 {[%clk 0:00:05]} 79. Qc1+ {[%clk 0:01:16]}  Kg2 {[%clk 0:00:05]} 80. Qb2+ {[%clk 0:01:17]}  Kg1 {[%clk 0:00:05]} 81. Qa1+ {[%clk 0:01:18]}  Kg2 {[%clk 0:00:06]} 82. Qa2+ {[%clk 0:01:19]}  Kg1 {[%clk 0:00:06]} 83. Qg8+ {[%clk 0:01:19]}  Kh1 {[%clk 0:00:06]} 84. Qa8+ {[%clk 0:01:19]}  Kg1 {[%clk 0:00:06]} 85. Qg8+ {[%clk 0:01:19]}  Kh1 {[%clk 0:00:07]} 86. Qd5+ {[%clk 0:01:20]}  Kg1 {[%clk 0:00:07]} 87. Kc5 {[%clk 0:01:19]}  h1=Q {[%clk 0:00:06]} 88. Qd4+ {[%clk 0:01:20]}  Kg2 {[%clk 0:00:06]} 89. Qe4+ {[%clk 0:01:21]}  Kh2 {[%clk 0:00:07]} 90. Qh4+ {[%clk 0:01:21]}  Kg1 {[%clk 0:00:07]} 91. Qe1+ {[%clk 0:01:21]}  Kh2 {[%clk 0:00:07]} 92. Qf2+ {[%clk 0:01:21]}  Qg2 {[%clk 0:00:07]} 93. Qh4+ {[%clk 0:01:21]}  Qh3 {[%clk 0:00:07]} 94. Qf2+ {[%clk 0:01:22]}  Qg2 {[%clk 0:00:07]} 95. Qh4+ {[%clk 0:01:22]}  Qh3 {[%clk 0:00:08]} 96. Qf4+ {[%clk 0:01:23]}  Qg3 {[%clk 0:00:08]} 97. Qd2+ {[%clk 0:01:24]}  Qg2 {[%clk 0:00:08]} 98. Qh6+ {[%clk 0:01:24]}  Qh3 {[%clk 0:00:08]} 99. Qd2+ {[%clk 0:01:24]}  Qg2 {[%clk 0:00:08]} 100. Qd6+ {[%clk 0:01:24]}  Qg3 {[%clk 0:00:09]} 101. Qxg3+ {[%clk 0:01:24]}  Kxg3 {[%clk 0:00:09]} 1/2-1/2


[Site "https://www.chess.com"]